bitfinex/quotes_SOLUSD_20250721
["timestamp","ask_amount","ask_price","bid_price","bid_amount"]
[1753097044068,6.81161195,192.08,192.03,26.18304681]
[1753097044210,6.81161195,192.08,192.03,26.89304681]
[1753097044396,6.81161195,192.08,192.04,0.71]
[1753097044603,5.20621195,192.08,192.04,10.10836284]
[1753097044800,5.20592625,192.09,192.04,10.10836284]
[1753097045002,5.20592625,192.09,192.04,36.10836284]
[1753097045230,5.2053511,192.11,192.04,26.71]
[1753097045401,9.39836284,192.09,192.04,26.71]
[1753097045600,18.21872885,192.11,192.04,26.71]
[1753097045801,9.39836284,192.08,192.03,16.78468397]
[1753097046212,9.39836284,192.09,192.03,26.89304681]
[1753097046413,9.39836284,192.08,192.03,17.49468397]
[1753097046706,9.39836284,192.09,192.03,17.49468397]
[1753097046913,9.39836284,192.08,192.03,17.49468397]
[1753097047125,18.21872885,192.11,192.04,0.71]
[1753097047326,5.20630625,192.08,192.04,0.71]
[1753097047510,9.39836284,192.1,192.05,16.78468397]
[1753097047709,5.2053511,192.11,192.05,16.78468397]
[1753097047925,9.39836284,192.09,192.05,16.78468397]
[1753097048122,5.2053511,192.11,192.05,16.78468397]
[1753097048333,9.39836284,192.1,192.05,16.78468397]
[1753097048637,9.39836284,192.09,192.03,26.89304681]
[1753097048933,1.5641,192.14,192.09,16.78468397]
[1753097049110,0.06,192.15,192.1,0.71]
[1753097049315,0.06,192.15,192.11,17.49468397]
[1753097049632,0.06,192.15,192.13,16.78468397]
[1753097050330,0.06,192.15,192.14,26.89304681]
[1753097050631,55.501,192.16,192.14,58.22304681]
[1753097050632,28.29646455,192.16,192.14,58.22304681]
[1753097050824,0.06,192.19,192.18,16.78468397]
[1753097051026,0.06,192.19,192.18,95.33304681]
[1753097051215,0.06,192.23,192.22,31.38541909]
[1753097051411,0.06,192.23,192.22,69.20541909]
[1753097051612,0.06,192.23,192.22,109.93378193]
[1753097051811,60.0,192.37,192.26,74.11468397]
[1753097052034,60.0,192.37,192.3,26.0]
[1753097052249,5.29886576,192.35,192.3,26.0]
[1753097052414,5.29886576,192.35,192.27,9.39836284]
[1753097052415,0.69,192.34,192.27,9.39836284]
[1753097052625,0.69,192.34,192.24,9.39836284]
[1753097052626,1.5253,192.33,192.24,9.39836284]
[1753097052921,9.39836284,192.3,192.25,16.78468397]
[1753097053126,1.5253,192.33,192.25,16.78468397]
[1753097053346,18.29600638,192.35,192.25,16.78468397]
[1753097053347,0.1,192.35,192.32,12.92628767]
[1753097053512,0.1,192.35,192.34,29.71097164]
[1753097053714,0.1,192.35,192.34,86.01468397]
[1753097053924,1e-08,192.37,192.36,58.11468397]
[1753097054215,0.5,192.45,192.36,58.11468397]
[1753097054216,0.5,192.45,192.44,26.0]
[1753097054421,0.5,192.45,192.44,55.71097164]
[1753097054641,29.97,192.53,192.44,125.68061412]
[1753097054836,29.97,192.53,192.5,55.71097164]
[1753097055031,29.97,192.53,192.5,99.822492]
[1753097055227,29.97,192.53,192.5,93.07851584]
[1753097055443,12.92628767,192.52,192.5,6.18231151]
[1753097055641,13.34628767,192.51,192.48,38.2]
[1753097056040,5.6145479,192.51,192.46,38.22]
[1753097056218,0.42,192.51,192.47,71.33967635]
[1753097056424,0.42,192.51,192.5,26.0]
[1753097056617,0.42,192.51,192.43,37.00208586]
[1753097056844,0.42,192.51,192.44,51.24628767]
[1753097057032,12.92628767,192.5,192.44,51.24628767]
[1753097057242,0.42,192.51,192.49,29.71097164]
[1753097057546,0.42,192.51,192.45,0.51961548]
[1753097057547,0.42,192.51,192.5,112.21156769]
[1753097057742,0.42,192.51,192.5,69.99478005]
[1753097057925,0.42,192.51,192.5,82.92106772]
[1753097058327,0.42,192.51,192.5,99.70575169]
[1753097058625,0.42,192.51,192.5,105.83791333]
[1753097058825,0.42,192.51,192.5,112.07135922]
[1753097059253,0.42,192.51,192.5,105.83791333]
[1753097059427,60.29090006,192.57,192.5,105.83791333]
[1753097059428,60.29090006,192.57,192.56,42.78468397]
[1753097059740,29.437,192.58,192.56,42.78468397]
[1753097059741,28.99595647,192.58,192.56,147.90195003]
[1753097060045,28.99595647,192.58,192.57,61.04097164]
[1753097060219,29.937,192.59,192.58,16.78468397]
[1753097060425,2.85206627,192.59,192.58,66.9519994]
[1753097060661,0.25651164,192.59,192.58,71.56023636]
[1753097060826,28.20446675,192.66,192.62,74.11468397]
[1753097061147,28.20446675,192.66,192.63,39.03912993]
[1753097061442,28.20446675,192.66,192.64,6.7e-07]
[1753097061643,28.20446675,192.66,192.65,4.85e-06]
[1753097061846,28.20446675,192.66,192.65,6.42e-06]
[1753097062047,2.70935325,192.66,192.65,4.87e-06]
[1753097062224,25.56257657,192.7,192.65,25.85257929]
[1753097062423,60.0,192.78,192.69,12.92628767]
[1753097062647,60.0,192.78,192.72,23.72677575]
[1753097062851,181.72075816,192.8,192.77,41.50257534]
[1753097063049,69.31020798,192.8,192.79,42.63725931]
[1753097063346,56.22065807,192.8,192.79,4.76393215]
[1753097063551,56.22065807,192.8,192.79,12.92628767]
[1753097063740,34.33226189,192.8,192.79,115.13649061]
[1753097063940,7.28833742,192.8,192.79,102.38989056]
[1753097064146,0.8857,192.92,192.83,16.78468397]
[1753097064321,0.8857,192.92,192.88,26.0]
[1753097064529,0.8857,192.92,192.91,26.0]
[1753097064845,13.81198767,192.92,192.87,26.0]
[1753097065048,12.92628767,192.88,192.84,26.0]
[1753097065247,0.69,192.87,192.6,27.69518191]
[1753097065432,0.69,192.87,192.52,0.295]
[1753097065433,7.46955738,192.84,192.69,31.33]
[1753097065632,7.40955738,192.81,192.7,16.16894135]
[1753097065836,39.12,192.8,192.73,44.25628767]
[1753097066036,52.04628767,192.8,192.75,31.33]
[1753097066241,12.92628767,192.76,192.66,12.92628767]
[1753097066537,13.61628767,192.79,192.65,31.33]
[1753097066538,12.92628767,192.69,192.65,31.33]
[1753097066742,39.14,192.68,192.65,31.33]
[1753097066937,7.40955738,192.75,192.67,31.33]
[1753097067138,7.40955738,192.8,192.73,31.33]
[1753097067352,12.92628767,192.79,192.74,0.51883366]
[1753097067528,12.92628767,192.79,192.62,15.550084]
[1753097067529,12.92628767,192.75,192.68,0.51899522]
[1753097067730,12.92628767,192.7,192.68,31.33]
[1753097068038,0.69,192.69,192.6,2.63992007]
[1753097068233,39.2,192.68,192.67,12.92628767]
[1753097068432,39.2,192.68,192.61,0.51918384]
[1753097068433,20.33584505,192.73,192.66,12.92628767]
[1753097068633,37.36,192.75,192.71,31.33]
[1753097068869,7.40955738,192.81,192.73,70.25628767]
[1753097069031,39.3,192.86,192.78,26.0]
[1753097069231,39.3,192.86,192.78,57.33]
[1753097069437,39.3,192.86,192.81,26.0]
[1753097069657,12.92628767,192.85,192.81,26.0]
[1753097069861,7.40955738,192.82,192.81,31.84864529]
[1753097070170,7.40955738,192.8,192.79,6.53240775]
[1753097070375,7.40955738,192.8,192.77,0.94055193]
[1753097070376,7.40955738,192.78,192.77,0.94055193]
[1753097070672,48.41955738,192.78,192.77,0.94055193]
[1753097071033,40.42,192.78,192.77,0.94055193]
[1753097071235,40.44,192.78,192.77,0.94055193]
[1753097071451,7.40955738,192.85,192.77,1.46055193]
[1753097071655,12.98628767,192.84,192.8,26.0]
[1753097071871,0.06,192.84,192.78,0.52]
[1753097072173,0.06,192.84,192.77,0.94055193]
[1753097072174,47.90955738,192.83,192.79,26.0]
[1753097072533,0.06,192.84,192.8,0.52]
[1753097072734,0.06,192.84,192.79,26.0]
[1753097072735,40.54,192.83,192.79,26.0]
[1753097072938,0.65,192.82,192.78,5.13522031]
[1753097073152,12.92628767,192.79,192.77,0.94055193]
[1753097073351,12.92628767,192.78,192.77,0.94055193]
[1753097073558,7.40955738,192.8,192.77,0.94055193]
[1753097073748,12.92628767,192.78,192.77,0.94055193]
[1753097073951,48.56955738,192.79,192.77,0.94055193]
[1753097074162,20.39584505,192.78,192.77,0.94055193]
[1753097074460,21.56449034,192.78,192.77,0.94055193]
[1753097074636,21.56449034,192.78,192.63,0.71]
[1753097074637,7.40955738,192.75,192.63,0.71]
[1753097074836,7.40955738,192.7,192.58,0.71]
[1753097075066,41.26,192.69,192.58,0.71]
[1753097075261,54.18628767,192.69,192.62,12.92628767]
[1753097075650,12.92628767,192.67,192.61,13.63628767]
[1753097075958,12.92628767,192.65,192.59,1.7493847]
[1753097076139,7.40955738,192.66,192.59,1.7493847]
[1753097076335,12.92628767,192.6,192.59,1.7493847]
[1753097076647,54.18628767,192.6,192.59,1.7493847]
[1753097076848,7.40955738,192.61,192.59,1.7493847]
[1753097077162,7.40955738,192.64,192.59,1.7493847]
[1753097077458,7.40955738,192.62,192.59,1.7493847]
[1753097077662,46.73133779,192.63,192.59,1.7493847]
[1753097077663,61.87584505,192.63,192.59,1.7493847]
[1753097077967,12.92628767,192.64,192.62,26.0]
[1753097078184,61.93584505,192.63,192.59,1.7493847]
[1753097078357,7.40955738,192.61,192.59,1.7493847]
[1753097078662,20.98584505,192.6,192.59,1.7493847]
[1753097079568,26.17795304,192.6,192.59,1.7493847]
[1753097079862,42.96263701,192.6,192.59,1.7493847]
[1753097080067,43.4812823,192.6,192.59,1.7493847]
[1753097080240,7.40955738,192.55,192.45,0.03]
[1753097080446,7.40955738,192.52,192.45,0.03]
[1753097080750,12.92628767,192.5,192.45,0.03]
[1753097081270,7.40955738,192.5,192.45,0.03]
[1753097081601,12.92628767,192.49,192.45,0.03]
[1753097081741,41.6,192.48,192.45,0.03]
[1753097081943,12.92628767,192.47,192.45,0.03]
[1753097082141,41.6,192.48,192.45,0.03]
[1753097082142,12.92628767,192.46,192.45,0.03]
[1753097082863,20.98584505,192.46,192.45,0.03]
[1753097083450,13.25544223,192.46,192.45,0.03]
[1753097083646,26.1817299,192.46,192.45,0.03]
[1753097084259,8.05955738,192.46,192.45,0.03]
[1753097084455,61.87584505,192.46,192.45,0.03]
[1753097084661,67.7217299,192.46,192.45,0.03]
[1753097084857,84.50641387,192.46,192.45,0.03]
[1753097085350,7.40955738,192.41,192.37,0.03]
[1753097085552,54.1071687,192.4,192.37,0.03]
[1753097085751,12.92628767,192.38,192.37,0.03]
[1753097085945,48.90955738,192.4,192.37,0.03]
[1753097086176,14.9243815,192.8,192.37,0.03]
[1753097086177,23.62475471,192.77,192.41,26.0]
[1753097086377,1.6825,192.78,192.54,11.9712]
[1753097086378,0.06,192.78,192.54,11.9712]
[1753097086552,0.06,192.78,192.43,0.295]
[1753097086553,0.65,192.76,192.55,1.22934562]
[1753097086755,0.65,192.76,192.59,26.0]
[1753097086756,12.92628767,192.63,192.59,26.0]
[1753097087082,79.12,192.75,192.51,0.71]
[1753097087083,12.92628767,192.6,192.51,0.71]
[1753097087283,41.78,192.59,192.49,1.69897844]
[1753097087592,6.15,192.65,192.49,1.69897844]
[1753097087593,12.92628767,192.57,192.53,26.0]
[1753097087872,41.82,192.56,192.53,26.0]
[1753097088077,41.82,192.56,192.53,0.71]
[1753097088274,41.82,192.56,192.54,26.0]
[1753097088591,12.92628767,192.62,192.55,13.63628767]
[1753097088873,11.34080691,192.65,192.58,26.0]
[1753097088874,12.92628767,192.6,192.58,26.0]
[1753097089113,41.8,192.59,192.58,26.0]
[1753097089289,41.8,192.59,192.55,13.63628767]
[1753097089450,12.92628767,192.62,192.59,26.0]
[1753097089651,41.78,192.61,192.59,26.0]
[1753097090268,41.78,192.61,192.6,31.33]
[1753097090463,12.92628767,192.63,192.6,31.33]
[1753097090663,6.15,192.65,192.6,31.33]
[1753097090664,41.76,192.61,192.6,31.33]
[1753097090891,19.07628767,192.65,192.6,31.33]
[1753097091176,12.92628767,192.66,192.6,31.33]
[1753097091350,12.92628767,192.66,192.61,0.71]
[1753097091547,42.54825748,192.75,192.66,46.98]
[1753097091782,41.68,192.74,192.69,31.33]
[1753097092077,12.92628767,192.73,192.69,31.33]
[1753097092668,12.92628767,192.72,192.67,31.33]
[1753097092886,0.65,192.71,192.66,31.33]
[1753097093084,54.70628767,192.7,192.66,31.33]
[1753097093381,12.92628767,192.68,192.66,31.33]
[1753097093809,41.76,192.67,192.66,31.33]
[1753097094366,41.76,192.67,192.66,35.73]
[1753097094567,0.65,192.69,192.66,35.73]
[1753097094794,41.7,192.68,192.66,35.73]
[1753097095178,41.7,192.68,192.66,4.4]
[1753097095779,18.76598987,192.69,192.66,4.4]
[1753097095991,41.64,192.68,192.66,4.4]
[1753097096503,5.1897022,192.69,192.66,4.4]
[1753097096805,41.6,192.68,192.66,4.4]
[1753097097369,0.65,192.72,192.66,17.32628767]
[1753097097674,18.11491177,192.73,192.67,12.92628767]
[1753097097874,41.56,192.72,192.7,12.92628767]
[1753097098081,41.56,192.72,192.71,12.92628767]
[1753097098274,5.18804966,192.76,192.71,12.92628767]
[1753097098478,41.56,192.74,192.71,12.92628767]
[1753097098886,0.06,192.78,192.72,12.92628767]
[1753097098887,12.98628767,192.78,192.72,12.92628767]
[1753097099188,41.52,192.74,192.69,36.51941505]
[1753097099490,5.18793162,192.76,192.69,37.22941505]
[1753097099791,5.18793162,192.76,192.71,12.92628767]
[1753097099993,37.42,192.75,192.71,0.51891443]
[1753097100170,37.42,192.75,192.74,12.92628767]
[1753097100369,78.88,192.75,192.74,12.92628767]
[1753097100692,37.42,192.75,192.74,13.63628767]
[1753097100905,78.86,192.75,192.74,13.63628767]
[1753097101196,78.86,192.75,192.71,0.67]
[1753097101382,37.42,192.75,192.7,12.92628767]
[1753097101570,41.44,192.74,192.69,26.0]
[1753097101771,55.04628767,192.74,192.68,12.92628767]
[1753097101996,12.92628767,192.7,192.65,0.03]
[1753097102207,41.44,192.69,192.65,0.03]
[1753097102397,12.92628767,192.67,192.65,0.03]
[1753097102595,0.68,192.69,192.65,30.03]
[1753097102777,54.34628767,192.68,192.65,30.03]
[1753097103094,12.92628767,192.66,192.65,30.03]
[1753097103291,13.60628767,192.66,192.65,30.03]
[1753097103478,12.92628767,192.66,192.65,30.03]
[1753097103679,0.68,192.66,192.65,30.03]
[1753097104089,13.60628767,192.66,192.65,0.03]
[1753097104689,26.53257534,192.66,192.65,0.03]
[1753097104989,26.53257534,192.66,192.58,30.0]
[1753097104990,7.1124,192.66,192.58,42.92628767]
[1753097105188,41.34,192.65,192.58,183.19262162]
[1753097105398,41.34,192.64,192.59,4.4]
[1753097105595,12.30296812,192.66,192.59,4.4]
[1753097105596,11.62289566,192.66,192.59,17.99628767]
[1753097105774,12.92628767,192.62,192.58,26.0]
[1753097105971,41.32,192.61,192.58,26.0]
[1753097106178,54.24628767,192.61,192.58,26.0]
[1753097106381,12.92628767,192.6,192.55,5.86345264]
[1753097106579,0.68,192.7,192.57,31.33]
[1753097106780,12.92628767,192.66,192.6,26.0]
[1753097107008,41.38,192.65,192.6,26.0]
[1753097107174,0.68,192.7,192.6,26.0]
[1753097107374,12.92628767,192.65,192.6,26.0]
[1753097107886,41.36,192.64,192.6,38.92628767]
[1753097108085,12.92628767,192.66,192.6,38.92628767]
[1753097108086,41.36,192.63,192.6,38.92628767]
[1753097108291,41.36,192.63,192.6,12.92628767]
[1753097108608,41.32,192.62,192.6,12.92628767]
[1753097108812,5.86942499,192.7,192.61,13.59628767]
[1753097108978,12.92628767,192.68,192.62,12.92628767]
[1753097109182,12.92628767,192.67,192.61,18.78807523]
[1753097109408,12.76619553,192.66,192.61,5.86178756]
[1753097109582,41.32,192.65,192.61,5.86178756]
[1753097109986,41.32,192.65,192.61,13.59628767]
[1753097110511,41.32,192.65,192.62,4.4]
[1753097110694,12.92628767,192.67,192.62,4.4]
[1753097110893,0.68,192.7,192.63,12.92628767]
[1753097111094,41.24,192.69,192.63,5.86117323]
[1753097111416,12.92628767,192.67,192.62,4.4]
[1753097111705,46.42969778,192.69,192.62,4.4]
[1753097111904,12.92628767,192.68,192.62,17.99628767]
[1753097112103,12.92628767,192.68,192.62,4.4]
[1753097112305,47.10969778,192.69,192.62,4.4]
[1753097112504,12.92628767,192.66,192.62,4.4]
[1753097112884,13.60628767,192.65,192.62,4.4]
[1753097113110,54.08628767,192.64,192.62,4.4]
[1753097113284,13.60628767,192.63,192.62,4.4]
[1753097113619,12.92628767,192.63,192.58,452.27116]
[1753097114225,41.16,192.64,192.59,13.59628767]
[1753097114410,41.16,192.64,192.59,0.67]
[1753097114411,12.92628767,192.64,192.59,0.67]
[1753097114597,41.14,192.63,192.59,0.67]
[1753097114788,41.14,192.63,192.59,13.59628767]
[1753097115182,54.06628767,192.63,192.58,431.46377215]
[1753097115386,12.92628767,192.61,192.6,4.4]
[1753097115605,0.68,192.62,192.58,426.27116]
[1753097115896,12.92628767,192.6,192.58,426.27116]
[1753097116103,41.12,192.59,192.58,426.27116]
[1753097116409,41.1,192.59,192.58,426.27116]
[1753097117909,0.06,192.78,192.6,26.0]
[1753097118108,12.92628767,192.68,192.62,12.92628767]
[1753097118312,41.04,192.67,192.64,12.92628767]
[1753097118706,41.04,192.67,192.64,13.59628767]
[1753097119098,41.04,192.67,192.63,38.92628767]
[1753097119296,41.62,192.66,192.64,5.1910299]
[1753097119494,41.62,192.66,192.64,18.78731757]
[1753097119695,41.58,192.65,192.64,5.1910299]
[1753097119899,5.86887548,192.72,192.64,18.78731757]
[1753097119900,12.92628767,192.71,192.64,18.78731757]
[1753097120099,41.56,192.7,192.64,5.8610299]
[1753097120296,41.56,192.7,192.66,12.92628767]
[1753097120517,41.56,192.69,192.66,12.92628767]
[1753097121116,56.68408767,192.75,192.68,12.92628767]
[1753097121317,41.52,192.74,192.72,5.18887505]
[1753097121625,12.92628767,192.73,192.66,44.11651024]
[1753097121795,13.60628767,192.72,192.66,31.19022257]
[1753097121999,12.92628767,192.7,192.64,31.33]
[1753097122197,41.5,192.69,192.64,5.19100107]
[1753097122501,12.92628767,192.65,192.58,431.4637432]
[1753097122693,42.18,192.64,192.58,431.4637432]
[1753097122889,12.92628767,192.63,192.58,579.4637432]
[1753097123101,13.60628767,192.62,192.58,574.27116]
[1753097123318,0.68,192.61,192.58,574.27116]
[1753097123495,41.48,192.6,192.58,574.27116]
[1753097123700,41.48,192.6,192.58,579.46375975]
[1753097124213,41.44,192.59,192.58,537.98375975]
[1753097124409,41.44,192.59,192.58,550.91004742]
[1753097124808,12.92628767,192.66,192.58,551.58004742]
[1753097125003,41.48,192.65,192.6,12.92628767]
[1753097125198,12.92628767,192.64,192.59,12.92628767]
[1753097125423,0.68,192.63,192.59,4.4]
[1753097125628,54.38628767,192.63,192.59,4.4]
[1753097125996,0.68,192.62,192.59,4.4]
[1753097126198,12.92628767,192.6,192.59,4.4]
[1753097126507,0.68,192.61,192.58,574.27116]
[1753097126508,0.68,192.61,192.58,426.27116]
[1753097126709,12.92628767,192.59,192.58,423.55456]
[1753097126894,54.96628767,192.59,192.58,423.55456]
[1753097127798,13.50628767,192.59,192.58,423.55456]
[1753097128029,54.90628767,192.59,192.58,423.55456]
[1753097128197,13.50628767,192.59,192.58,423.55456]
[1753097128395,54.90628767,192.59,192.58,423.55456]
[1753097128730,13.50628767,192.59,192.58,423.55456]
[1753097128897,54.88628767,192.59,192.58,423.55456]
[1753097129207,41.36,192.59,192.58,423.55456]
[1753097129392,54.28628767,192.59,192.58,423.55456]
[1753097130119,54.86628767,192.59,192.58,423.55456]
[1753097130323,41.94,192.59,192.58,423.55456]
[1753097130533,12.92628767,192.59,192.58,423.55456]
[1753097130738,41.38,192.59,192.58,423.55456]
[1753097130908,54.28628767,192.59,192.58,423.55456]
[1753097131334,60.05866525,192.59,192.58,423.55456]
[1753097131537,47.13237758,192.59,192.58,423.55456]
[1753097131736,60.05866525,192.59,192.58,423.55456]
[1753097132517,18.69866525,192.59,192.58,423.55456]
[1753097132721,59.99866525,192.59,192.58,423.55456]
[1753097132928,76.78334922,192.59,192.58,406.88816]
[1753097134018,89.70963689,192.59,192.58,238.32005157]
[1753097134213,89.70963689,192.59,192.58,169.96559558]
[1753097134428,89.70963689,192.59,192.58,141.3775493]
[1753097134632,89.70963689,192.59,192.58,84.85245943]
[1753097134828,99.70963689,192.59,192.58,31.18450027]
[1753097135028,22.55706155,192.59,192.58,31.18450027]
[1753097135225,76.72334922,192.59,192.58,31.18450027]
[1753097135628,35.48334922,192.59,192.58,31.18450027]
[1753097135823,76.72334922,192.59,192.58,31.18450027]
[1753097136149,76.72334922,192.59,192.58,3.34220104]
[1753097136332,35.48334922,192.59,192.58,3.34220104]
[1753097136645,76.70334922,192.59,192.58,3.34220104]
[1753097136931,29.71097164,192.57,192.56,0.03]
[1753097137328,71.49097164,192.57,192.56,0.03]
[1753097137533,76.6838885,192.57,192.56,0.03]
[1753097138445,35.4838885,192.57,192.56,0.03]
[1753097138750,76.6638885,192.57,192.56,0.03]
[1753097139346,76.0438885,192.57,192.56,0.03]
[1753097139527,76.0438885,192.57,192.52,0.03]
[1753097139528,16.78468397,192.54,192.52,0.03]
[1753097139732,83.73725931,192.53,192.4,5.19750519]
[1753097139945,12.92628767,192.42,192.4,5.19750519]
[1753097140137,41.12,192.41,192.4,5.19750519]
[1753097140543,54.04628767,192.41,192.38,1.57094798]
[1753097140856,40.86035,192.41,192.38,6.76883611]
[1753097141058,12.92628767,192.39,192.38,7.45883611]
[1753097141222,12.92628767,192.39,192.38,6.76883611]
[1753097141427,16.78468397,192.47,192.38,6.76883611]
[1753097141696,12.92628767,192.42,192.38,6.76883611]
[1753097141840,41.08,192.41,192.38,19.76394994]
[1753097142148,41.08,192.4,192.39,13.61628767]
[1753097142324,41.08,192.4,192.38,77.09394994]
[1753097142525,41.08,192.4,192.39,0.69]
[1753097142859,41.08,192.4,192.39,5.88777535]
[1753097143441,54.00628767,192.4,192.39,5.88777535]
[1753097143634,54.00628767,192.4,192.39,5.19777535]
[1753097143834,54.00628767,192.4,192.38,6.76896415]
[1753097144050,12.92628767,192.39,192.38,1.57094798]
[1753097144248,54.00628767,192.4,192.38,1.57094798]
[1753097144427,54.00628767,192.4,192.38,6.76883847]
[1753097144635,12.92628767,192.39,192.38,6.76883847]
[1753097145462,12.92628767,192.39,192.38,1.57094798]
[1753097145846,40.96,192.39,192.38,6.76899351]
[1753097146050,12.92628767,192.4,192.38,7.45899351]
[1753097146252,40.96,192.39,192.38,7.45899351]
[1753097146770,40.96,192.39,192.38,6.76899351]
[1753097146943,40.96,192.39,192.38,1.57094798]
[1753097147145,53.88628767,192.39,192.38,1.57094798]
[1753097147543,40.96,192.39,192.38,1.57094798]
[1753097147855,40.96,192.39,192.38,6.76899351]
[1753097148053,53.88628767,192.39,192.38,6.76899351]
[1753097148252,40.96,192.39,192.38,6.76899351]
[1753097148567,53.88628767,192.39,192.38,1.57094798]
[1753097148751,37.38,192.46,192.38,7.45875135]
[1753097148949,40.86,192.45,192.38,7.45875135]
[1753097149149,12.92628767,192.42,192.38,7.45875135]
[1753097149361,40.86,192.41,192.38,7.45875135]
[1753097149768,40.86,192.41,192.38,20.45386518]
[1753097150351,40.86,192.41,192.38,7.45875135]
[1753097150646,40.86,192.41,192.39,0.69]
[1753097150865,40.86,192.41,192.4,5.19750519]
[1753097151253,37.38,192.46,192.4,5.19750519]
[1753097151459,12.92628767,192.42,192.4,5.19750519]
[1753097151770,37.38,192.46,192.41,13.61628767]
[1753097151971,37.38,192.46,192.45,12.92628767]
[1753097152175,37.38,192.46,192.45,13.61628767]
[1753097152660,78.12,192.46,192.45,13.61628767]
[1753097152870,37.38,192.46,192.45,18.81244251]
[1753097153252,78.1,192.46,192.45,5.88615484]
[1753097153477,37.38,192.46,192.45,18.81244251]
[1753097153782,12.92628767,192.52,192.45,205.80282962]
[1753097153943,16.78468397,192.57,192.45,205.80282962]
[1753097153944,40.7,192.51,192.47,12.92628767]
[1753097154144,40.7,192.5,192.49,12.92628767]
[1753097154355,42.59227458,192.6,192.49,13.61628767]
[1753097154560,12.92628767,192.56,192.5,12.92628767]
[1753097154765,12.92628767,192.56,192.52,5.19426553]
[1753097154967,40.7,192.55,192.52,5.19426553]
[1753097155148,40.7,192.54,192.53,0.69]
[1753097155349,40.7,192.54,192.52,5.19426553]
[1753097155568,37.4,192.6,192.53,70.25628767]
[1753097155745,12.92628767,192.65,192.59,12.92628767]
[1753097155951,40.68,192.64,192.6,0.69]
[1753097156146,40.68,192.64,192.61,0.69]
[1753097156345,0.06,192.67,192.62,0.69]
[1753097156545,40.66,192.66,192.63,12.92628767]
[1753097156763,0.06,192.67,192.65,5.19076044]
[1753097157156,40.68,192.66,192.65,5.19076044]
[1753097157560,40.68,192.66,192.65,5.88076044]
[1753097157766,40.68,192.66,192.65,0.69]
[1753097158269,40.68,192.66,192.59,13.50000288]
[1753097158270,54.15628767,192.66,192.58,5.19264721]
[1753097158463,12.92628767,192.62,192.58,35.19264721]
[1753097158772,40.64,192.61,192.59,0.69]
[1753097158977,0.55,192.66,192.58,35.19264721]
[1753097158978,40.64,192.6,192.58,35.19263182]
[1753097159280,0.55,192.66,192.58,35.19263182]
[1753097159281,40.64,192.59,192.58,35.19263182]
[1753097159580,40.62,192.59,192.58,5.19263182]
[1753097160086,0.06,192.67,192.61,26.0]
[1753097160377,40.62,192.66,192.62,13.61628767]
[1753097160575,40.6,192.65,192.63,13.61628767]
[1753097160749,40.6,192.65,192.64,12.92628767]
[1753097160950,0.06,192.67,192.64,5.8810299]
[1753097161151,40.58,192.66,192.64,5.8810299]
[1753097161358,0.06,192.67,192.65,0.67]
[1753097161573,40.58,192.66,192.64,26.0]
[1753097161955,40.58,192.66,192.64,38.92628767]
[1753097162163,40.58,192.66,192.65,0.67]
[1753097162463,40.58,192.66,192.64,174.67]
[1753097162668,40.58,192.66,192.64,186.92628767]
[1753097162863,0.06,192.67,192.66,5.19049102]
[1753097163168,0.06,192.67,192.66,166.63582779]
[1753097163475,40.58,192.67,192.66,166.78677869]
[1753097163683,40.58,192.67,192.66,153.86049102]
[1753097164207,0.06,192.67,192.66,166.78677869]
[1753097164369,0.06,192.7,192.67,1.7901]
[1753097164551,40.48,192.69,192.67,2.4601]
[1753097164868,0.06,192.66,192.65,36.52074046]
[1753097165066,40.5,192.66,192.65,49.49764157]
[1753097165370,40.5,192.66,192.65,55.16764157]
[1753097165580,0.06,192.7,192.68,57.33]
[1753097166067,0.06,192.7,192.69,44.92628767]